fUST/lending_fUST_20251013
["ID","MTS","AMOUNT","RATE_DAILY","PERIOD"]
[391009448,1760287840523,-999.9119178,0.000241,7]
[391009621,1760287891531,-1000.0,0.00023467,30]
[391009622,1760287891541,-39563.59223654,0.000241,7]
[391009623,1760287891552,-2088.78532203,0.000241,7]
[391009624,1760287891562,-2891.0123151,0.000241,2]
[391009625,1760287891572,-179.96321703,0.000241,2]
[391009626,1760287891583,-417.15472785,0.00024111,2]
[391009627,1760287891593,-160.0,0.00024111,2]
[391009628,1760287891602,-160.0,0.00024111,2]
[391009629,1760287891612,-2088.78532203,0.00024119,2]
[391009630,1760287891623,-261.7976785,0.00024174,2]
[391009631,1760287891633,-168.0,0.00024226,2]
[391009632,1760287891642,-500.0,0.00024316,5]
[391009633,1760287891651,-864.12,0.00024346,2]
[391009634,1760287891662,-182.48267391,0.000244,2]
[391009635,1760287891672,-226.42564376,0.000244,2]
[391009636,1760287891681,-1288.29718112,0.000244,2]
[391009637,1760287891691,-228.4575409,0.000244,2]
[391009638,1760287891701,-2891.0123151,0.000244,2]
[391009639,1760287891711,-603.67280339,0.00024417,2]
[391009640,1760287891721,-168.0,0.0002444,2]
[391009641,1760287891731,-300.0,0.00024474,20]
[391009642,1760287891743,-300.0,0.00024474,20]
[391009643,1760287891752,-300.0,0.00024474,20]
[391009644,1760287891763,-300.0,0.00024474,20]
[391009645,1760287891772,-300.0,0.00024474,20]
[391009646,1760287891782,-300.0,0.00024474,20]
[391009647,1760287891792,-300.0,0.00024474,20]
[391009648,1760287891802,-300.0,0.00024474,20]
[391009649,1760287891812,-300.0,0.00024474,20]
[391009650,1760287891821,-300.0,0.00024474,20]
[391009651,1760287891831,-300.0,0.00024474,20]
[391009652,1760287891840,-300.0,0.00024474,20]
[391009653,1760287891850,-300.0,0.00024474,20]
[391009654,1760287891859,-300.0,0.00024474,20]
[391009655,1760287891869,-300.0,0.00024474,20]
[391009656,1760287891879,-500.0,0.00024569,2]
[391009657,1760287891889,-500.0,0.0002459,5]
[391009658,1760287891898,-182.48267391,0.000246,2]
[391009659,1760287891908,-1288.29718112,0.000246,2]
[391009660,1760287891918,-228.4575409,0.000246,2]
[391009661,1760287891927,-2891.0123151,0.000246,2]
[391009662,1760287891937,-999.0,0.00024649,2]
[391009663,1760287891947,-380.0,0.00024658,2]
[391009664,1760287891957,-168.0,0.0002469,2]
[391009665,1760287891967,-182.48267391,0.000248,2]
[391009666,1760287891976,-1288.29718112,0.000248,2]
[391009667,1760287891985,-228.4575409,0.000248,2]
[391009668,1760287891995,-2088.78532203,0.000248,7]
[391009669,1760287892004,-2891.0123151,0.000248,2]
[391009670,1760287892015,-40000.0,0.000248,2]
[391009671,1760287892025,-434.986,0.00024802,8]
[391009672,1760287892035,-168.0,0.00024853,2]
[391009673,1760287892044,-500.0,0.00024864,5]
[391009674,1760287892053,-500.0,0.00024873,2]
[391009675,1760287892063,-511678.639001,0.000249,2]
[391009676,1760287892073,-168.0,0.00024936,2]
[391009677,1760287892082,-600.0,0.00024962,20]
[391009678,1760287892092,-655.41618654,0.00025017,2]
[391009679,1760287892102,-366.80567639,0.00025019,2]
[391009680,1760287892111,-500.0,0.00025028,7]
[391009681,1760287892121,-182.48267391,0.000251,2]
[391009682,1760287892130,-1288.29718112,0.000251,2]
[391009683,1760287892140,-228.4575409,0.000251,2]
[391009684,1760287892151,-2891.0123151,0.000251,2]
[391009685,1760287892162,-500.0,0.00025138,5]
[391009686,1760287892172,-199.0,0.00025205,7]
[391009687,1760287892181,-1288.29718112,0.000253,2]
[391009688,1760287892191,-2891.0123151,0.000253,2]
[391009689,1760287892201,-1080.16,0.00025361,2]
[391009690,1760287892211,-500.0,0.00025369,7]
[391009691,1760287892220,-500.0,0.00025464,7]
[391009692,1760287892230,-199.0,0.00025479,8]
[391009693,1760287892239,-168.0,0.00025498,2]
[391009694,1760287892249,-18603.8837,0.00025531,2]
[391009695,1760287892258,-195.60154796,0.00025531,2]
[391009696,1760287892270,-1288.29718112,0.000256,2]
[391009697,1760287892279,-2891.0123151,0.000256,2]
[391009698,1760287892288,-707.15956968,0.00025617,2]
[391009699,1760287892298,-199.0,0.00025753,9]
[391009700,1760287892308,-500.0,0.00025785,7]
[391009701,1760287892317,-1288.29718112,0.000258,2]
[391009702,1760287892328,-500.0,0.00025808,7]
[391009703,1760287892339,-266.467058,0.00025814,2]
[391009704,1760287892348,-2891.0123151,0.000259,2]
[391009705,1760287892359,-500.0,0.00025908,7]
[391009706,1760287892369,-500.0,0.00025959,2]
[391009707,1760287892379,-503.9206388,0.00025961,7]
[391009708,1760287892388,-420.0,0.00025964,2]
[391009709,1760287892399,-168.0,0.00025969,2]
[391009710,1760287892409,-1000.0,0.00026,30]
[391009711,1760287892418,-199.0,0.00026027,10]
[391009712,1760287892428,-151.0,0.00026028,2]
[391009713,1760287892438,-180.31992171,0.00026028,2]
[391009714,1760287892447,-151.0,0.00026028,2]
[391009715,1760287892456,-151.0,0.00026028,2]
[391009716,1760287892465,-151.0,0.00026028,2]
[391009717,1760287892474,-151.0,0.00026028,2]
[391009718,1760287892483,-151.0,0.00026028,2]
[391009719,1760287892492,-151.0,0.00026028,2]
[391009720,1760287892502,-151.0,0.00026028,2]
[391009721,1760287892514,-151.0,0.00026028,2]
[391009722,1760287892523,-151.0,0.00026028,2]
[391009723,1760287892532,-151.0,0.00026028,2]
[391009724,1760287892541,-151.0,0.00026028,2]
[391009725,1760287892552,-151.0,0.00026028,2]
[391009726,1760287892561,-151.0,0.00026028,2]
[391009727,1760287892570,-651.42971206,0.0002603,7]
[391009728,1760287892580,-500.0,0.00026073,2]
[391009729,1760287892590,-500.0,0.00026073,2]
[391009730,1760287892599,-331.56949515,0.00026073,2]
[391009731,1760287892608,-500.0,0.00026073,2]
[391009732,1760287892618,-500.0,0.00026075,7]
[391009733,1760287892627,-14493.37073776,0.00026079,2]
[391009734,1760287892858,-4798.85665914,0.00026079,2]
[391009735,1760287892868,-151.0,0.00026083,2]
[391009736,1760287892877,-151.0,0.00026083,2]
[391009737,1760287892888,-151.0,0.00026083,2]
[391009738,1760287892897,-151.0,0.00026083,2]
[391009739,1760287892906,-151.0,0.00026083,2]
[391009740,1760287892916,-168.0,0.00026089,2]
[391009741,1760287892926,-366.80567639,0.00026096,2]
[391009742,1760287892935,-1288.29718112,0.000261,2]
[391009743,1760287892944,-80206.4,0.000261,7]
[391009744,1760287892953,-2088.78532203,0.000261,7]
[391009745,1760287892963,-2891.0123151,0.000261,2]
[391009746,1760287892972,-168.0,0.00026201,2]
[391009747,1760287892982,-758.90295283,0.00026217,2]
[391009748,1760287892991,-168.0,0.00026286,2]
[391009749,1760287893002,-199.0,0.00026301,11]
[391009750,1760287893011,-150.0,0.00026307,30]
[391009751,1760287893025,-168.0,0.00026327,2]
[391009752,1760287893035,-1296.19,0.00026375,2]
[391009753,1760287893045,-1288.29718112,0.000264,2]
[391009754,1760287893055,-2891.0123151,0.000264,2]
[391009755,1760287893064,-168.0,0.00026528,2]
[391009756,1760287893074,-199.0,0.00026575,12]
[391009757,1760287893083,-1000.0,0.00026621,2]
[391009758,1760287893093,-1000.0,0.00026621,2]
[391009759,1760287893102,-615.88224253,0.00026621,2]
[391009760,1760287893111,-11109.57075819,0.00026627,2]
[391009761,1760287893120,-958.028125,0.00026676,2]
[391009762,1760287893130,-363.65268336,0.00026767,2]
[391009763,1760287893139,-810.64633598,0.00026817,2]
[391009764,1760287893148,-199.0,0.00026849,13]
[391009765,1760287893157,-1184.05126035,0.00026921,2]
[391009766,1760287893167,-981.0,0.00026996,2]
[391009767,1760287893176,-630.0,0.00026996,2]
[391009768,1760287893186,-2160.0,0.00026996,2]
[391009769,1760287893195,-150.0,0.00026996,2]
[391009770,1760287893204,-150.0,0.00026996,2]
[391009771,1760287893214,-150.0,0.00026996,2]
[391009772,1760287893223,-160.0,0.00027,7]
[391009773,1760287893233,-612.79100345,0.00027019,2]
[391009774,1760287893242,-500.0,0.00027019,2]
[391009775,1760287893250,-500.0,0.00027019,2]
[391009776,1760287893260,-199.0,0.00027123,14]
[391009777,1760287893272,-1500.0,0.00027168,2]
[391009778,1760287893282,-1037.05869976,0.00027168,2]
[391009779,1760287893292,-366.80567639,0.00027172,2]
[391009780,1760287893301,-500.0,0.00027272,2]
[391009781,1760287893310,-501.05544168,0.00027373,2]
[391009782,1760287893380,-500.0,0.00027373,2]
[391009783,1760287893389,-500.0,0.00027373,2]
[391009784,1760287893398,-500.0,0.00027373,2]
[391009785,1760287893407,-999.0,0.00027389,4]
[391009786,1760287893416,-1512.22,0.0002739,2]
[391009787,1760287893426,-2310.6,0.00027397,60]
[391009788,1760287893435,-2310.6,0.00027397,60]
[391009789,1760287893444,-2310.6,0.00027397,60]
[391009790,1760287893455,-2310.6,0.00027397,60]
[391009791,1760287893464,-2310.6,0.00027397,60]
[391009792,1760287893474,-2310.6,0.00027397,60]
[391009793,1760287893483,-2310.6,0.00027397,60]
[391009794,1760287893492,-2310.6,0.00027397,60]
[391009795,1760287893502,-2310.6,0.00027397,60]
[391009796,1760287893511,-2310.6,0.00027397,60]
[391009797,1760287893526,-2310.6,0.00027397,60]
[391009798,1760287893535,-2310.6,0.00027397,60]
[391009799,1760287893545,-2310.6,0.00027397,60]
[391009800,1760287893555,-2310.6,0.00027397,60]
[391009801,1760287893564,-2310.6,0.00027397,60]
[391009802,1760287893574,-2310.6,0.00027397,60]
[391009803,1760287893583,-2310.6,0.00027397,60]
[391009804,1760287893593,-2310.6,0.00027397,60]
[391009805,1760287893602,-2310.6,0.00027397,60]
[391009806,1760287893611,-2310.6,0.00027397,60]
[391009807,1760287893620,-2310.6,0.00027397,60]
[391009808,1760287893630,-2310.6,0.00027397,60]
[391009809,1760287893639,-2310.6,0.00027397,60]
[391009810,1760287893649,-2310.67737848,0.00027397,60]
[391009811,1760287893658,-500.0,0.00027397,60]
[391009812,1760287893667,-500.0,0.00027397,60]
[391009813,1760287893677,-500.0,0.00027397,60]
[391009814,1760287893687,-500.0,0.00027397,60]
[391009815,1760287893698,-500.0,0.00027397,60]
[391009816,1760287893707,-500.0,0.00027397,60]
[391009817,1760287893717,-500.0,0.00027397,60]
[391009818,1760287893727,-500.0,0.00027397,60]
[391009819,1760287893736,-500.0,0.00027397,60]
[391009820,1760287893746,-500.0,0.00027397,60]
[391009821,1760287893755,-500.0,0.00027397,60]
[391009822,1760287893766,-500.0,0.00027397,60]
[391009823,1760287893775,-500.0,0.00027397,60]
[391009824,1760287893785,-500.0,0.00027397,60]
[391009825,1760287893794,-500.0,0.00027397,60]
[391009826,1760287893804,-500.0,0.00027397,60]
[391009827,1760287893814,-500.0,0.00027397,60]
[391009828,1760287893824,-500.0,0.00027397,60]
[391009829,1760287893833,-500.0,0.00027397,60]
[391009830,1760287893843,-500.0,0.00027397,60]
[391009831,1760287893852,-500.0,0.00027397,60]
[391009832,1760287893862,-500.0,0.00027397,60]
[391009833,1760287893871,-500.0,0.00027397,60]
[391009834,1760287893881,-295.6661961,0.00027397,60]
[391009835,1760287893891,-510.63450437,0.00027397,60]
[391009836,1760287893900,-244.73271052,0.00027397,60]
[391009837,1760287893910,-3766.35,0.00027397,60]
[391009838,1760287893920,-3766.35,0.00027397,60]
[391009839,1760287893930,-3766.35,0.00027397,60]
[391009840,1760287893939,-3766.35,0.00027397,60]
[391009841,1760287893949,-3766.35,0.00027397,60]
[391009842,1760287893959,-3766.35,0.00027397,60]
[391009843,1760287893968,-3766.35,0.00027397,60]
[391009844,1760287893978,-3766.35,0.00027397,60]
[391009845,1760287893988,-3766.35,0.00027397,60]
[391009846,1760287893999,-3766.35,0.00027397,60]
[391009847,1760287894009,-3766.35,0.00027397,60]
[391009848,1760287894021,-3766.35,0.00027397,60]
[391009849,1760287894031,-3766.35,0.00027397,60]
[391009850,1760287894040,-3766.35,0.00027397,60]
[391009851,1760287894050,-3766.35,0.00027397,60]
[391009852,1760287894060,-3766.35,0.00027397,60]
[391009853,1760287894069,-3766.35,0.00027397,60]
[391009854,1760287894078,-3766.35,0.00027397,60]
[391009855,1760287894088,-3766.35,0.00027397,60]
[391009856,1760287894097,-3766.35,0.00027397,60]
[391009857,1760287894107,-3766.35,0.00027397,60]
[391009858,1760287894116,-3766.35,0.00027397,60]
[391009859,1760287894125,-3766.35,0.00027397,60]
[391009860,1760287894135,-3766.46141216,0.00027397,60]
[391009861,1760287894144,-591.12,0.00027397,60]
[391009862,1760287894154,-591.12,0.00027397,60]
[391009863,1760287894164,-591.12,0.00027397,60]
[391009864,1760287894173,-591.12,0.00027397,60]
[391009865,1760287894183,-591.12,0.00027397,60]
[391009866,1760287894193,-591.12,0.00027397,60]
[391009867,1760287894202,-591.12,0.00027397,60]
[391009868,1760287894212,-591.12,0.00027397,60]
[391009869,1760287894222,-591.12,0.00027397,60]
[391009870,1760287894232,-591.12,0.00027397,60]
[391009871,1760287894243,-591.12,0.00027397,60]
[391009872,1760287894254,-591.12,0.00027397,60]
[391009873,1760287894265,-591.12,0.00027397,60]
[391009874,1760287894276,-591.12,0.00027397,60]
[391009875,1760287894285,-591.12,0.00027397,60]
[391009876,1760287894294,-591.12,0.00027397,60]
[391009877,1760287894304,-591.12,0.00027397,60]
[391009878,1760287894313,-591.12,0.00027397,60]
[391009879,1760287894323,-591.12,0.00027397,60]
[391009880,1760287894333,-591.12,0.00027397,60]
[391009881,1760287894343,-591.12,0.00027397,60]
[391009882,1760287894352,-591.12,0.00027397,60]
[391009883,1760287894361,-591.12,0.00027397,60]
[391009884,1760287894371,-591.34833876,0.00027397,60]
[391009885,1760287894382,-1000.0,0.00027397,2]
[391009886,1760287894392,-1000.0,0.00027397,2]
[391009887,1760287894402,-908.85745182,0.00027397,2]
[391009888,1760287894412,-500.0,0.00027397,60]
[391009889,1760287894421,-500.0,0.00027397,60]
[391009890,1760287894431,-500.0,0.00027397,60]
[391009891,1760287894442,-500.0,0.00027397,60]
[391009892,1760287894452,-500.0,0.00027397,60]
[391009893,1760287894462,-500.0,0.00027397,60]
[391009894,1760287894474,-500.0,0.00027397,60]
[391009895,1760287894483,-500.0,0.00027397,60]
[391009896,1760287894492,-500.0,0.00027397,60]
[391009897,1760287894502,-500.0,0.00027397,60]
[391009898,1760287894517,-500.0,0.00027397,60]
[391009899,1760287894527,-500.0,0.00027397,60]
[391009900,1760287894536,-500.0,0.00027397,60]
[391009901,1760287894547,-500.0,0.00027397,60]
[391009902,1760287894556,-500.0,0.00027397,60]
[391009903,1760287894565,-500.0,0.00027397,60]
[391009904,1760287894574,-500.0,0.00027397,60]
[391009905,1760287894585,-500.0,0.00027397,60]
[391009906,1760287894595,-616.80808269,0.00027397,60]
[391009907,1760287894604,-1000.0,0.00027397,2]
[391009908,1760287894613,-1000.0,0.00027397,2]
[391009909,1760287894622,-1000.0,0.00027397,2]
[391009910,1760287894631,-1000.0,0.00027397,2]
[391009911,1760287894641,-1000.0,0.00027397,2]
[391009912,1760287894652,-1000.0,0.00027397,2]
[391009913,1760287894661,-1000.0,0.00027397,2]
[391009914,1760287894671,-199.19192341,0.00027397,2]
[391009915,1760287894681,-500.0,0.00027397,2]
[391009916,1760287894691,-500.0,0.00027397,2]
[391009917,1760287894700,-500.0,0.00027397,2]
[391009918,1760287894710,-500.0,0.00027397,2]
[391009919,1760287894719,-500.0,0.00027397,2]
[391009920,1760287894728,-471.12464822,0.00027397,2]
[391009921,1760287894738,-500.12415705,0.00027397,2]
[391009922,1760287894747,-500.20853287,0.00027397,2]
[391009923,1760287894756,-500.0,0.00027397,2]
[391009924,1760287894768,-500.0,0.00027397,2]
[391009925,1760287894778,-500.0,0.00027397,2]
[391009926,1760287894787,-500.0,0.00027397,2]
[391009927,1760287894797,-500.0,0.00027397,2]
[391009928,1760287894806,-500.0,0.00027397,2]
[391009929,1760287894815,-500.0,0.00027397,2]
[391009930,1760287894825,-500.0,0.00027397,2]
[391009931,1760287894834,-500.0,0.00027397,2]
[391009932,1760287894844,-500.01,0.00027397,2]
[391009933,1760287894853,-166.66,0.00027397,2]
[391009934,1760287894863,-769.37,0.00027397,2]
[391009935,1760287894872,-769.37,0.00027397,2]
[391009936,1760287894882,-769.37,0.00027397,2]
[391009937,1760287894892,-769.37,0.00027397,2]
[391009938,1760287894902,-769.37,0.00027397,2]
[391009939,1760287894912,-769.37,0.00027397,2]
[391009940,1760287894922,-769.37,0.00027397,2]
[391009941,1760287894931,-769.37,0.00027397,2]
[391009942,1760287894941,-769.37,0.00027397,2]
[391009943,1760287894951,-769.37,0.00027397,2]
[391009944,1760287894960,-769.37,0.00027397,2]
[391009945,1760287894970,-769.37,0.00027397,2]
[391009946,1760287894979,-769.37,0.00027397,2]
[391009947,1760287894988,-769.37,0.00027397,2]
[391009948,1760287894998,-769.37,0.00027397,2]
[391009949,1760287895007,-769.37,0.00027397,2]
[391009950,1760287895018,-769.37,0.00027397,2]
[391009951,1760287895027,-769.37,0.00027397,2]
[391009952,1760287895036,-769.37,0.00027397,2]
[391009953,1760287895046,-769.37,0.00027397,2]
[391009954,1760287895055,-769.37,0.00027397,2]
[391009955,1760287895065,-769.37,0.00027397,2]
[391009956,1760287895075,-769.37,0.00027397,2]
[391009957,1760287895085,-769.48,0.00027397,2]
[391009958,1760287895094,-199.0,0.00027397,15]
[391009959,1760287895104,-500.0,0.00027397,2]
[391009960,1760287895114,-500.0,0.00027397,2]
[391009961,1760287895123,-500.0,0.00027397,2]
[391009962,1760287895132,-500.0,0.00027397,2]
[391009963,1760287895142,-379.73221293,0.00027397,2]
[391009964,1760287895152,-520.0,0.00027397,3]
[391009965,1760287895162,-520.0,0.00027397,3]
[391009966,1760287895171,-650.56478143,0.00027397,3]
[391009967,1760287895181,-10000.0,0.00027397,2]
[391009968,1760287895190,-9387.0,0.00027397,2]
[391009969,1760287895200,-160.44376366,0.00027397,2]
[391009970,1760287895209,-300.0,0.000274,2]
[391009971,1760287895219,-2283.34,0.000274,2]
[391009972,1760287895228,-862.38971913,0.00027417,2]
[391009973,1760287895238,-720.0,0.00027459,30]
[391009974,1760287895248,-158.29,0.00027541,15]
[391009975,1760287895257,-156.8,0.00027541,15]
[391009976,1760287895269,-185.17,0.0002756,30]
[391009977,1760287895278,-1000.0,0.00027567,5]
[391009978,1760287895288,-1000.0,0.00027567,5]
[391009979,1760287895298,-158.29,0.00027641,15]
[391009980,1760287895307,-156.8,0.00027641,15]
[391009981,1760287895317,-199.0,0.00027671,16]
[391009982,1760287895326,-392.005774,0.00027699,30]
[391009983,1760287895335,-392.005774,0.00027699,30]
[391009984,1760287895346,-392.005774,0.00027699,30]
[391009985,1760287895356,-368.7731961,0.00027699,30]
[391009986,1760287895365,-158.29,0.00027741,15]
[391009987,1760287895375,-156.8,0.00027741,15]
[391009988,1760287895384,-158.29,0.00027841,15]
[391009989,1760287895394,-156.83581456,0.00027841,15]
[391009990,1760287895403,-501.51524726,0.00027921,5]
[391009991,1760287895414,-500.0,0.00027921,5]
[391009992,1760287895424,-1000.0,0.00027921,5]
[391009993,1760287895433,-158.29,0.00027941,15]
[391009994,1760287895443,-199.0,0.00027945,17]
[391009995,1760287895452,-338.12077716,0.00028,5]
[391009996,1760287895462,-914.13310227,0.00028017,2]
[391009997,1760287895472,-158.29,0.00028041,15]
[391009998,1760287895481,-224.30002003,0.00028051,2]
[391009999,1760287895491,-403.74003605,0.00028051,2]
[391010000,1760287895500,-717.76006409,0.00028051,2]
[391010001,1760287895512,-1121.50010013,0.00028051,2]
[391010002,1760287895524,-334.84151556,0.00028051,2]
[391010003,1760287895534,-1500.0,0.00028115,5]
[391010004,1760287895544,-1500.0,0.00028115,5]
[391010005,1760287895554,-158.3,0.00028141,15]
[391010006,1760287895564,-250.0,0.00028148,2]
[391010007,1760287895573,-587.0,0.00028158,2]
[391010008,1760287895583,-80206.4,0.000282,7]
[391010009,1760287895594,-199.0,0.00028219,18]
[391010010,1760287895603,-366.80567639,0.00028249,2]
[391010011,1760287895612,-11319.2540034,0.00028349,2]
[391010012,1760287895622,-928.2930907,0.00028349,2]
[391010013,1760287895631,-1728.25,0.00028404,2]
[391010014,1760287895641,-1500.0,0.00028468,5]
[391010015,1760287895651,-199.0,0.00028493,19]
[391010016,1760287895660,-379.5219454,0.00028521,30]
[391010017,1760287895671,-1628.72853758,0.00028586,5]
[391010018,1760287895681,-965.87648542,0.00028617,2]
[391010019,1760287895691,-500.0,0.00028663,5]
[391010020,1760287895701,-199.0,0.00028767,20]
[391010021,1760287895711,-277.75,0.00028812,30]
[391010022,1760287895721,-2000.0,0.000289,2]
[391010023,1760287895731,-965.86021479,0.00029,2]
[391010029,1760288213718,1291.3,0.00021,2]
[391010030,1760288219456,5000.0,0.00021,2]
[391010031,1760288277230,344.05342886,0.00020895,6]
[391010032,1760288289444,-864.0,0.00027969,30]
[391010033,1760288289470,-160.60614935,0.00029041,120]
[391010034,1760288289494,-266.467058,0.00029239,60]
[391010035,1760288289519,-185.03,0.00029609,30]
[391010036,1760288289542,-200.0,0.000297,120]
[391010037,1760288289569,-13745.6106294,0.0003,60]
[391010038,1760288289593,-151.0,0.0003,30]
[391010039,1760288289618,-151.0,0.0003,30]
[391010040,1760288289646,-151.0,0.0003,30]
[391010041,1760288289669,-157.175538,0.0003,30]
[391010042,1760288289694,-157.175538,0.0003,30]
[391010043,1760288289719,-157.175538,0.0003,30]
[391010044,1760288289745,-157.175538,0.0003,30]
[391010045,1760288289767,-151.0,0.0003,30]
[391010046,1760288289790,-151.0,0.0003,30]
[391010047,1760288289813,-151.0,0.0003,30]
[391010048,1760288289837,-151.0,0.0003,30]
[391010049,1760288289862,-151.0,0.0003,30]
[391010050,1760288289887,-151.0,0.0003,30]
[391010051,1760288289910,-200.0,0.0003,30]
[391010052,1760288289934,-151.0,0.0003,30]
[391010053,1760288289958,-151.0,0.0003,30]
[391010054,1760288289982,-151.0,0.0003,30]
[391010055,1760288290007,-151.0,0.0003,30]
[391010056,1760288290030,-151.0,0.0003,30]
[391010057,1760288290053,-151.0,0.0003,30]
[391010058,1760288290076,-151.0,0.0003,30]
[391010059,1760288290099,-151.0,0.0003,30]
[391010060,1760288290125,-151.0,0.0003,30]
[391010061,1760288290150,-151.0,0.0003,30]
[391010062,1760288290174,-151.0,0.0003,30]
[391010063,1760288290196,-151.0,0.0003,30]
[391010064,1760288290220,-153.590663,0.0003,30]
[391010065,1760288290244,-151.0,0.0003,30]
[391010066,1760288290268,-151.0,0.0003,30]
[391010067,1760288290293,-151.0,0.0003,30]
[391010068,1760288290317,-151.0,0.0003,30]
[391010069,1760288290340,-151.0,0.0003,30]
[391010070,1760288290364,-151.0,0.0003,30]
[391010071,1760288290387,-151.0,0.0003,30]
[391010072,1760288290411,-151.0,0.0003,30]
[391010073,1760288290435,-337.041722,0.0003,30]
[391010074,1760288290458,-151.0,0.0003,30]
[391010075,1760288290481,-151.0,0.0003,30]
[391010076,1760288290504,-337.041722,0.0003,30]
[391010077,1760288290527,-337.041722,0.0003,30]
[391010078,1760288290551,-337.041722,0.0003,30]
[391010079,1760288290574,-151.0,0.0003,30]
[391010080,1760288290598,-151.0,0.0003,30]
[391010081,1760288290624,-2088.78532203,0.0003,30]
[391010082,1760288290648,-151.0,0.0003,30]
[391010083,1760288290670,-151.0,0.0003,30]
[391010084,1760288290692,-151.0,0.0003,30]
[391010085,1760288290730,-151.0,0.0003,30]
[391010086,1760288290755,-151.0,0.0003,30]
[391010087,1760288290778,-151.0,0.0003,30]
[391010088,1760288290803,-151.0,0.0003,30]
[391010089,1760288290827,-151.0,0.0003,30]
[391010090,1760288290853,-151.0,0.0003,30]
[391010091,1760288290880,-151.0,0.0003,30]
[391010092,1760288290908,-151.0,0.0003,30]
[391010093,1760288290933,-151.0,0.0003,30]
[391010094,1760288290958,-206.400914,0.0003,30]
[391010095,1760288290982,-151.0,0.0003,30]
[391010096,1760288291007,-206.400914,0.0003,30]
[391010097,1760288291031,-151.0,0.0003,30]
[391010098,1760288291057,-206.400914,0.0003,30]
[391010099,1760288291084,-151.0,0.0003,30]
[391010100,1760288291111,-206.400914,0.0003,30]
[391010101,1760288291136,-151.0,0.0003,30]
[391010102,1760288291161,-261.14056,0.0003,30]
[391010103,1760288291187,-623.871092,0.0003,30]
[391010104,1760288291211,-623.871092,0.0003,30]
[391010105,1760288291234,-623.871092,0.0003,30]
[391010106,1760288291259,-623.871092,0.0003,30]
[391010107,1760288291282,-151.0,0.0003,30]
[391010108,1760288291306,-151.0,0.0003,30]
[391010109,1760288291330,-151.0,0.0003,30]
[391010110,1760288291355,-151.0,0.0003,30]
[391010111,1760288291377,-151.0,0.0003,30]
[391010112,1760288291406,-151.0,0.0003,30]
[391010113,1760288291431,-151.0,0.00030246,30]
[391010114,1760288291455,-151.0,0.00030246,30]
[391010115,1760288291478,-151.0,0.00030246,30]
[391010116,1760288291502,-238.495112,0.00030246,30]
[391010117,1760288291526,-151.0,0.00030246,30]
[391010118,1760288291549,-151.0,0.00030246,30]
[391010119,1760288291576,-151.0,0.00030246,30]
[391010120,1760288291807,-151.0,0.00030246,30]
[391010121,1760288291832,-151.0,0.00030246,30]
[391010122,1760288291859,-151.0,0.00030246,30]
[391010123,1760288291884,-151.0,0.00030246,30]
[391010124,1760288291908,-151.0,0.00030246,30]